bitfinex-derivatives/quotes_ETHF0:USTF0_20250403
["timestamp","ask_amount","ask_price","bid_price","bid_amount"]
[1743643834596,9.52854,1825.7,1825.6,7.74e-06]
[1743643837293,5.58554,1825.7,1825.6,7.74e-06]
[1743643837498,4.81944,1825.7,1825.6,7.74e-06]
[1743643837692,6.32514,1825.7,1825.6,7.74e-06]
[1743643838500,4.81944,1825.7,1825.6,7.74e-06]
[1743643841202,6.33324,1825.7,1825.6,7.74e-06]
[1743643841800,4.81944,1825.7,1825.6,7.74e-06]
[1743643843395,6.33324,1825.7,1825.6,7.74e-06]
[1743643845602,4.81944,1825.7,1825.6,7.74e-06]
[1743643846207,3.943,1825.7,1825.6,7.74e-06]
[1743643846505,4.81944,1825.7,1825.6,7.74e-06]
[1743643846805,0.87644,1825.7,1825.6,7.74e-06]
[1743643847005,0.00822774,1826.0,1825.6,7.74e-06]
[1743643847306,0.00822774,1826.0,1825.7,3.2078]
[1743643847503,0.00822774,1826.0,1825.9,0.87635]
[1743643847706,0.00822774,1826.0,1825.8,1.4245]
[1743643847911,0.00822774,1826.0,1825.9,0.87635]
[1743643848707,0.00822774,1826.0,1825.9,4.08415]
[1743643848906,0.00822774,1826.0,1825.9,12.40815]
[1743643849107,3.2078,1826.5,1825.9,12.16219303]
[1743643849300,5.479,1827.9,1825.8,1.4245]
[1743643849301,3.2078,1827.0,1826.4,0.87607]
[1743643849499,0.87599,1826.7,1826.5,1.4624]
[1743643849901,3.942,1826.9,1826.5,2.33844]
[1743643849902,0.87595,1826.8,1826.5,2.33844]
[1743643850109,3.942,1826.9,1826.5,5.54624]
[1743643850298,0.00822774,1826.8,1826.5,4.67842774]
[1743643850605,0.00822774,1826.8,1826.7,0.87596]
[1743643853009,0.00822774,1826.8,1826.6,1.486]
[1743643853408,0.87596,1826.7,1826.6,1.486]
[1743643853799,4.08376,1826.7,1826.6,1.486]
[1743643854816,0.88416774,1826.8,1826.6,1.486]
[1743643855006,0.87596,1826.7,1826.6,1.486]
[1743643855817,2.34066,1826.7,1826.6,1.486]
[1743643856019,0.87596,1826.7,1826.6,1.486]
[1743643857613,0.87601,1826.6,1826.5,0.73472774]
[1743643857813,0.87601,1826.6,1826.5,0.00822774]
[1743643857814,2.34071,1826.6,1826.5,0.00822774]
[1743643858107,2.34071,1826.6,1826.1,0.7009]
[1743643858108,0.8762,1826.2,1826.1,0.7009]
[1743643858313,4.8152,1826.2,1826.1,0.7009]
[1743643859011,0.7178,1826.6,1826.1,0.7009]
[1743643859214,0.87611,1826.4,1826.1,1.57713]
[1743643860114,4.81409,1826.5,1826.2,0.8762]
[1743643860414,0.87611,1826.4,1826.1,1.57712]
[1743643860816,0.8762,1826.2,1826.1,0.7009]
[1743643861109,0.8762,1826.2,1826.0,0.00822774]
[1743643861110,0.87625,1826.1,1826.0,0.00822774]
[1743643861416,2.24655,1826.1,1826.0,0.00822774]
[1743643862908,5.45435,1826.1,1826.0,0.00822774]
[1743643863416,6.14245,1826.1,1826.0,0.00822774]
[1743643863610,3.938,1826.2,1826.0,0.00822774]
[1743643863806,3.938,1826.1,1826.0,0.00822774]
[1743643864011,3.938,1826.2,1826.0,0.88451774]
[1743643864211,4.8142,1826.2,1826.1,0.7272]
[1743643864921,2.35549,1826.3,1826.1,0.7272]
[1743643865220,4.81407,1826.5,1826.1,3.935]
[1743643865414,0.87615,1826.3,1826.2,0.7321]
[1743643866423,0.87613,1826.4,1826.2,0.7321]
[1743643866723,0.87613,1826.4,1826.2,1.60829]
[1743643868319,0.87615,1826.3,1826.2,0.7321]
[1743643868620,0.87614,1826.4,1826.2,0.7321]
[1743643868817,0.87615,1826.3,1826.2,0.7321]
[1743643869223,0.8762,1826.2,1826.1,3.935]
[1743643870413,0.87625,1826.1,1826.0,0.00822774]
[1743643870618,0.87622,1826.2,1826.0,0.00822774]
[1743643871722,1.3762,1826.4,1826.0,0.00822774]
[1743643872021,0.87616,1826.3,1826.1,0.87625]
[1743643872220,0.87616,1826.3,1826.2,1.4875]
[1743643872612,0.87617,1826.3,1826.1,0.87624]
[1743643872820,0.8762,1826.2,1826.1,1.4875]
[1743643873021,0.87625,1826.1,1826.0,0.00822774]
[1743643873216,1.62075,1826.1,1826.0,0.00822774]
[1743643873421,3.04525,1826.1,1826.0,0.00822774]
[1743643875326,0.7191,1826.6,1826.0,1.42192774]
[1743643875620,4.20899689,1827.1,1826.7,0.87596]
[1743643875811,3.78766,1827.0,1826.6,0.87598]
[1743643876017,0.88415774,1826.8,1826.5,1.57145]
[1743643876216,0.00822774,1826.8,1826.6,1.4137]
[1743643877622,1.49922774,1826.8,1826.6,1.4137]
[1743643878024,1.49922774,1826.8,1826.6,2.28971]
[1743643878626,0.00822774,1826.8,1826.7,2.35106]
[1743643879313,0.00822774,1826.8,1826.7,5.55886]
[1743643879920,0.00822774,1826.8,1826.7,6.24446]
[1743643880925,0.88413774,1826.8,1826.7,2.1607]
[1743643881225,0.87596,1826.7,1826.4,4.08388]
[1743643881432,0.87604,1826.6,1826.5,1.4279]
[1743643881625,1.3861,1826.7,1826.5,1.4279]
[1743643881826,0.87601,1826.6,1826.4,3.2078]
[1743643882127,1.3861,1826.5,1826.4,3.2078]
[1743643882332,0.7012,1826.6,1826.4,5.51181]
[1743643882829,1.3861,1826.7,1826.5,0.87606]
[1743643883030,1.3861,1826.7,1826.6,1.4279]
[1743643883329,2.26206,1826.7,1826.6,1.4279]
[1743643883727,0.87601,1826.6,1826.4,3.2078]
[1743643884031,1.5049,1826.5,1826.4,3.2078]
[1743643884325,1.5049,1826.5,1826.4,4.595]
[1743643884531,0.7012,1826.6,1826.4,5.47111]
[1743643884941,1.5049,1826.7,1826.5,0.87604]
[1743643885251,0.87596,1826.7,1826.6,2.0768]
[1743643885446,0.00822774,1826.8,1826.7,0.87596]
[1743643885740,0.87578,1827.1,1826.8,0.87588]
[1743643885935,0.87578,1827.1,1826.9,2.0956]
[1743643886136,3.2078,1827.2,1826.9,2.97145]
[1743643886137,5.58844,1827.2,1826.9,2.97145]
[1743643886335,3.2078,1827.2,1827.0,0.8758]
[1743643886634,3.2078,1827.2,1827.1,1.4158]
[1743643887034,2.28263774,1827.3,1827.1,1.4158]
[1743643887647,0.00822774,1827.3,1827.1,2.29156]
[1743643887939,0.00822774,1827.3,1827.2,1.4158]
[1743643888544,0.88389774,1827.3,1827.2,1.4158]
[1743643888840,0.87582,1827.0,1826.9,0.00822774]
[1743643889234,4.654,1827.2,1826.9,0.00822774]
[1743643889235,5.52974,1827.2,1826.9,0.00822774]
[1743643889430,5.52974,1827.2,1826.9,2.13052774]
[1743643889431,6.20804,1827.2,1826.9,2.13052774]
[1743643889737,6.20804,1827.2,1826.9,3.00638774]
[1743643889935,5.3323,1827.2,1827.0,0.87582]
[1743643890252,5.3323,1827.2,1827.1,1.3947]
[1743643891941,3.934,1827.2,1827.1,1.3947]
[1743643892332,0.00822774,1827.3,1827.2,0.87572]
[1743643892534,0.00822774,1827.3,1827.2,2.38432]
[1743643892735,0.00822774,1827.3,1827.2,3.10562]
[1743643893643,5.421,1827.8,1827.6,0.87553]
[1743643893841,5.421,1827.8,1827.4,0.87561]
[1743643894147,0.87553,1827.6,1827.5,1.5086]
[1743643895046,2.37174,1827.7,1827.5,1.5086]
[1743643896444,1.49622,1827.7,1827.5,2.38418]
[1743643896744,2.37171,1827.7,1827.5,1.5086]
[1743643897044,3.932,1828.3,1827.6,3.2078]
[1743643897238,3.932,1828.3,1827.8,3.2078]
[1743643897440,4.80724,1828.3,1827.9,3.06226]
[1743643897745,6.28934,1828.3,1828.0,0.6978]
[1743643897946,1.4821,1828.3,1828.1,1.4852]
[1743643898149,1.63477,1828.4,1828.1,1.4852]
[1743643898445,3.11647,1828.4,1828.1,1.4852]
[1743643899240,0.87524,1828.2,1828.0,3.21600502]
[1743643899747,2.2413,1828.4,1828.0,1.52090502]
[1743643899748,2.35699,1828.1,1828.0,1.52090502]
[1743643899942,2.35699,1828.1,1828.0,0.00820502]
[1743643900143,9.49679,1828.1,1828.0,0.00820502]
[1743643900350,9.49679,1828.1,1827.0,2.18955]
[1743643900351,3.2078,1827.9,1827.2,5.824]
[1743643900642,3.2078,1827.9,1825.7,21.68495137]
[1743643900643,0.87659,1825.4,1824.6,6.35596]
[1743643900847,2.76542527,1825.0,1824.2,0.4088274]
[1743643901040,8.08863,1824.9,1824.8,11.45937868]
[1743643901243,9.84266324,1824.9,1824.8,9.00014868]
[1743643901439,5.75803324,1824.9,1824.8,26.97715912]
[1743643901639,5.4189671,1825.4,1824.9,11.55328119]
[1743643901942,5.964,1825.4,1825.3,2.2078]
[1743643902149,0.87659,1825.4,1825.3,7.34278882]
[1743643902342,3.2078,1826.1,1825.3,18.89607001]
[1743643902648,3.2078,1826.1,1825.6,3.2078]
[1743643902837,0.87639,1825.8,1825.7,1.429]
[1743643903039,7.3358,1825.9,1825.4,4.13498882]
[1743643903348,7.3358,1825.9,1824.4,63.85]
[1743643903349,0.88214,1825.7,1825.6,5.02e-06]
[1743643903648,10.72894,1825.7,1825.6,5.02e-06]
[1743643903850,10.86174,1825.7,1825.6,5.02e-06]
[1743643904146,11.2184849,1825.7,1824.8,3.2078]
[1743643904345,8.7184849,1825.7,1825.0,3.2078]
[1743643904648,8.5856849,1825.7,1825.2,3.2078]
[1743643904951,0.87656,1825.5,1825.2,3.2078]
[1743643905139,0.87659,1825.4,1825.3,11.56148621]
[1743643905342,4.08439,1825.4,1825.3,11.56148621]
[1743643905538,4.08439,1825.4,1825.3,5.02e-06]
[1743643905539,8.22739,1825.4,1825.3,5.02e-06]
[1743643905750,11.9605749,1825.4,1825.3,5.02e-06]
[1743643905951,9.4605749,1825.4,1825.3,5.02e-06]
[1743643906153,3.2261749,1825.4,1825.3,11.55328621]
[1743643906343,6.2517749,1825.4,1825.3,11.55328621]
[1743643906746,7.3568,1825.6,1825.3,11.55328621]
[1743643907052,10.65102777,1825.5,1825.4,13.02488119]
[1743643907247,0.87659,1825.4,1825.3,11.55328621]
[1743643907445,1.99409,1825.4,1825.3,11.55328621]
[1743643907751,5.20189,1825.4,1825.3,11.55328621]
[1743643908248,0.87659,1825.4,1825.3,11.55328621]
[1743643908646,11.52760777,1825.5,1825.3,11.55328621]
[1743643908849,11.52760777,1825.5,1825.4,12.93548119]
[1743643909551,11.52760777,1825.5,1825.4,12.84017228]
[1743643909753,10.65102777,1825.5,1825.4,16.04797228]
[1743643910550,5.37403895,1825.5,1825.4,19.42456228]
[1743643910750,0.00820001,1825.8,1825.4,19.42456228]
[1743643910751,12.78123333,1826.2,1825.8,0.87638]
[1743643910953,12.78123333,1826.2,1826.0,3.2078]
[1743643911148,12.78123333,1826.2,1826.1,5.95877055]
[1743643911454,9.58461278,1826.2,1826.1,5.04625]
[1743643911650,7.30061278,1826.2,1826.1,7.54625]
[1743643914456,7.30061278,1826.2,1826.1,9.01595]
[1743643914657,0.00820502,1826.3,1826.1,9.01595]
[1743643914949,0.00820502,1826.3,1826.2,5.5537]
[1743643915151,0.87593,1826.8,1826.4,0.8761]
[1743643915455,0.87587,1826.9,1826.7,3.2078]
[1743643915753,1.4314,1827.3,1826.8,1.4697]
[1743643916152,0.87577,1827.1,1826.8,1.4697]
[1743643916655,1.4314,1827.3,1826.9,0.00820502]
[1743643916656,0.87582,1827.0,1826.9,0.00820502]
[1743643917155,0.87579,1827.1,1826.9,0.00820502]
[1743643917749,1.4314,1827.3,1826.9,3.21600502]
[1743643917954,1.4314,1827.3,1827.1,3.2078]
[1743643918458,0.87582,1827.0,1826.9,0.00820502]
[1743643919249,1.32350634,1827.0,1826.9,0.00820502]
[1743643919756,2.77590634,1827.0,1826.9,0.00820502]
[1743643920257,0.87591,1826.8,1826.7,3.2078]
[1743643920455,1.90008634,1827.0,1826.7,3.2078]
[1743643920456,0.87589,1826.9,1826.7,3.2078]
[1743643920650,2.32829,1826.9,1826.7,3.2078]
[1743643920846,2.32829,1826.9,1826.0,0.7467]
[1743643920847,4.126,1826.8,1826.2,3.2078]
[1743643921049,3.2078,1826.3,1825.8,9.0318]
[1743643921350,0.87635,1825.9,1825.8,3.2078]
[1743643921551,0.87635,1825.9,1825.6,4.6162]
[1743643921750,2.32879,1825.8,1825.7,0.00820502]
[1743643921948,1.4524,1825.8,1825.7,0.00820502]
[1743643922855,1.62912,1826.2,1825.7,0.00820502]
[1743643923053,2.33506,1826.3,1826.0,3.2078]
[1743643923258,1.32399148,1826.2,1826.0,3.2078]
[1743643923660,0.87623,1826.2,1826.0,3.2078]
[1743643923954,1.4589,1826.3,1826.0,3.2078]
[1743643924260,4.125,1826.4,1826.0,3.2078]
[1743643924261,0.87611,1826.4,1826.1,1.4929]
[1743643924454,0.87611,1826.4,1826.2,3.2078]
[1743643924455,0.87615,1826.3,1826.2,3.2078]
[1743643924756,1.32417209,1826.3,1826.2,3.2078]
[1743643924959,0.44802209,1826.3,1826.0,3.2078]
[1743643925153,1.4589,1826.2,1825.7,9.04000502]
[1743643925354,0.87639,1825.8,1825.7,9.04000502]
[1743643925659,0.87639,1825.8,1825.7,3.21600502]
[1743643925859,0.87638,1825.9,1825.7,3.21600502]
[1743643926164,0.87628,1826.1,1825.8,1.3992]
[1743643926367,0.8763,1826.0,1825.9,3.2078]
[1743643926861,2.28158,1826.1,1825.9,3.2078]
[1743643927053,2.28158,1826.1,1826.0,1.3992]
[1743643927255,0.87621,1826.2,1826.0,1.3992]
[1743643927560,3.2078,1826.5,1826.1,3.2078]
[1743643927764,0.87612,1826.4,1826.2,1.3992]
[1743643928256,0.87615,1826.3,1826.2,1.3992]
[1743643928462,1.32543664,1826.3,1826.2,1.3992]
[1743643928760,0.44928664,1826.3,1826.2,1.3992]
[1743643928960,1.32543664,1826.3,1826.2,1.3992]
[1743643929763,0.44928664,1826.3,1826.2,1.3992]
[1743643930359,0.44928664,1826.3,1826.2,2.2754]
[1743643930562,0.44928664,1826.3,1826.2,6.3754]
[1743643931060,0.44928664,1826.3,1826.2,5.4992]
[1743643931460,0.44928664,1826.3,1826.2,6.3754]
[1743643931856,0.44928664,1826.3,1826.2,5.4992]
[1743643932258,0.44928664,1826.3,1826.2,14.6994]
[1743643932566,0.00820502,1826.7,1826.2,14.5678]
[1743643932761,0.00820502,1826.7,1826.6,4.08381]
[1743643933573,0.00820502,1826.7,1826.6,5.53201]
[1743643933966,0.00820502,1826.7,1826.6,4.656]
[1743643934168,0.00820502,1826.7,1826.6,5.53201]
[1743643934360,0.88416502,1826.7,1826.6,4.656]
[1743643935267,0.88416502,1826.7,1826.6,3.2078]
[1743643935766,0.87606,1826.5,1826.4,3.2078]
[1743643936264,3.09673,1826.6,1826.4,3.2078]
[1743643936659,3.09673,1826.6,1826.4,4.6829]
[1743643937461,2.2207,1826.6,1826.4,5.559]
[1743643937770,1.4877,1826.6,1826.4,5.559]
[1743643938768,0.88419502,1826.7,1826.6,0.87601]
[1743643938769,0.00820502,1826.7,1826.6,0.87601]
[1743643938968,0.00820502,1826.7,1826.6,4.08381]
[1743643939470,0.00820502,1826.7,1826.6,12.40781]
[1743643940264,10.61649593,1826.9,1826.8,0.87591]
[1743643940459,10.61649593,1826.9,1826.8,8.15871]
[1743643940664,10.61649593,1826.9,1826.8,10.65871]
[1743643942572,6.83258272,1843.1,1827.5,0.87553]
[1743643942573,10.61649593,1827.7,1827.5,0.87553]
[1743643942763,12.12989593,1827.7,1827.6,3.2078]
[1743643942965,12.12989593,1827.7,1827.6,4.6225]
[1743643943772,12.12989593,1827.7,1827.6,5.49803]
[1743643944367,10.61649593,1827.7,1827.6,5.49803]
[1743643944874,11.05049652,1827.7,1827.6,9.56003]
[1743643945178,0.43400059,1827.7,1827.6,9.56003]
[1743643946174,1.89340059,1827.7,1827.6,3.2078]
[1743643946375,2.76888059,1827.7,1827.4,9.61199]
[1743643946571,1.89340059,1827.7,1827.4,9.61199]
[1743643946770,1.89340059,1827.7,1827.4,8.7364]
[1743643946971,2.76890059,1827.7,1827.5,0.87556]
[1743643947169,0.43400059,1827.6,1827.5,0.87556]
[1743643947475,2.79183059,1827.6,1827.4,5.557]
[1743643947778,1.91630059,1827.6,1827.4,5.557]
[1743643947968,2.79184059,1827.6,1827.4,5.557]
[1743643948170,0.43400059,1827.5,1827.4,5.557]
[1743643949379,0.43400059,1827.5,1827.4,8.057]
[1743643950171,10.61649593,1827.9,1827.8,0.87543]
[1743643950474,10.61649593,1827.9,1827.8,4.08323]
[1743643950668,11.04920968,1827.9,1827.8,4.08323]
[1743643950871,11.04920968,1827.9,1827.8,5.53093]
[1743643951272,11.04920968,1827.9,1827.8,11.35493]
[1743643951577,11.04920968,1827.9,1827.8,12.05523]
[1743643951776,10.61649593,1827.9,1827.8,12.80033]
[1743643951978,10.61649593,1827.9,1827.8,15.30033]
[1743643954775,2.2562,1828.3,1828.1,0.87526]
[1743643954976,2.25619,1828.3,1828.2,3.2078]
[1743643955371,0.87529,1828.1,1828.0,3.2078]
[1743643956279,2.67908155,1828.1,1828.0,3.2078]
[1743643958279,0.87543,1827.8,1827.7,0.00820502]
[1743643958582,4.08321,1827.9,1827.7,0.00820502]
[1743643958771,1.4879,1827.8,1827.7,0.88368502]
[1743643958968,2.79552155,1827.8,1827.7,0.00820502]
[1743643959276,3.48142155,1827.8,1827.7,0.00820502]
[1743643959479,2.60599155,1827.8,1827.7,0.00820502]
[1743643959682,2.60599155,1827.8,1827.7,0.88368502]
[1743643960178,2.60599155,1827.8,1827.7,0.00820502]
[1743643960478,3.48142155,1827.8,1827.7,0.00820502]
[1743643960867,3.48142155,1827.8,1827.4,0.87559]
[1743643960868,8.31379155,1827.8,1827.1,5.824]
[1743643961068,0.87565,1827.4,1827.1,0.87574]
[1743643961274,2.2109,1827.3,1827.1,0.87574]
[1743643961471,0.43219155,1827.3,1827.2,0.87572]
[1743643961676,0.43219155,1827.3,1827.2,4.08352]
[1743643961980,0.43219155,1827.4,1827.3,0.87567]
[1743643962278,0.44039657,1827.4,1827.3,2.33847]
[1743643963071,0.44039657,1827.4,1827.3,6.33347]
[1743643964278,0.44039657,1827.4,1827.3,7.07657]
[1743643964475,0.44039657,1827.4,1827.3,12.90057]
[1743643964780,10.61649593,1827.6,1827.5,0.87558]
[1743643964970,10.61649593,1827.6,1827.5,4.08338]
[1743643965679,10.61649593,1827.6,1827.5,5.46648]
[1743643965878,8.17530748,1828.1,1827.9,0.87537]
[1743643966178,1.446,1828.0,1827.9,0.87539]
[1743643966681,1.446,1828.0,1827.8,1.3831]
[1743643966880,0.87539,1827.9,1827.8,1.3831]
[1743643967877,1.446,1828.0,1827.8,2.25851]
[1743643968879,0.8754,1827.9,1827.7,3.2078]
[1743643969183,0.8755,1827.7,1827.5,4.08337]
[1743643969483,2.88739,1828.1,1827.5,4.08337]
[1743643969484,1.5022,1827.6,1827.5,4.08337]
[1743643969671,1.5022,1827.6,1827.5,5.58277]
[1743643970781,1.5022,1827.6,1827.5,9.54877]
[1743643971283,0.6991,1828.1,1828.0,0.87534]
[1743643972381,2.37031,1828.3,1828.1,0.87527]
[1743643972975,2.37031,1828.3,1828.0,0.88352502]
[1743643973376,1.4951,1828.3,1828.1,0.87527]
[1743643974879,1.4951,1828.3,1828.2,0.87524]
[1743643975079,1.4951,1828.3,1828.1,0.87526]
[1743643975279,4.7029,1828.3,1828.0,0.00820502]
[1743643975679,1.4951,1828.3,1828.1,0.87526]
[1743643976581,1.4951,1828.3,1828.0,0.88352502]
[1743643976886,2.37031,1828.3,1828.0,0.00820502]
[1743643977182,0.87525,1828.2,1828.0,0.00820502]
[1743643977379,1.4188,1828.1,1828.0,0.00820502]
[1743643977581,1.4188,1828.1,1828.0,0.88354502]
[1743643977974,13.43420756,1828.4,1828.2,0.87523]
[1743643978176,1.426,1828.3,1828.2,0.87523]
[1743643979086,1.426,1828.3,1828.1,2.37886]
[1743643979984,1.426,1828.3,1828.2,0.87524]
[1743643980684,12.74400756,1828.4,1828.3,0.87519]
[1743643980883,12.74400756,1828.4,1828.3,6.86556389]
[1743643981082,12.74400756,1828.4,1828.3,6.31639]
[1743643981281,14.16320756,1828.4,1828.3,6.31639]
[1743643981481,14.16320756,1828.4,1828.0,0.00820502]
[1743643981687,3.9471,1828.3,1828.0,0.00820502]
[1743643981880,0.87529,1828.1,1828.0,0.00820502]
[1743643982784,4.81029,1828.1,1828.0,0.00820502]
[1743643983178,9.6428,1828.1,1827.6,3.2078]
[1743643983386,0.87544,1827.8,1827.6,4.08331]
[1743643983581,7.1428,1828.1,1827.6,3.2078]
[1743643983582,2.26998,1827.7,1827.6,3.2078]
[1743643983778,1.3945,1827.7,1827.4,3.2078]
[1743643984077,1.3945,1827.7,1827.2,4.08351]
[1743643984284,0.87566,1827.4,1827.1,1.41662211]
[1743643984582,1.3945,1827.3,1827.1,0.87574]
[1743643984784,4.6655,1827.6,1827.2,3.2078]
[1743643985081,1.3945,1827.5,1827.3,0.87567]
[1743643985285,1.3945,1827.5,1827.2,4.5806]
[1743643985286,18.54562301,1827.5,1827.4,0.87563]
[1743643985980,19.42120301,1827.5,1827.3,3.935]
[1743643986177,19.42120301,1827.5,1826.7,59.64686]
[1743643986178,7.1428,1827.4,1826.8,3.2078]
[1743643986378,0.87584,1827.0,1826.7,0.87594]
[1743643986580,3.2078,1827.2,1826.8,0.87591]
[1743643986783,1.4614,1827.1,1826.8,3.2078]
[1743643986982,1.4614,1827.1,1826.9,2.29473]
[1743643987282,1.4614,1827.1,1827.0,0.87582]
[1743643987485,37.14803639,1827.6,1827.0,0.87582]
[1743643987486,38.02357639,1827.6,1827.4,0.87562]
[1743643987687,1.4614,1827.5,1827.4,0.87562]
[1743643988188,37.14803639,1827.6,1827.4,0.87562]
[1743643988480,38.60943639,1827.6,1827.5,1.4189]
[1743643989290,37.90753639,1827.6,1827.5,2.29448]
[1743643990982,1.4614,1827.6,1827.5,2.29448]
[1743643991589,17.15932803,1827.7,1827.6,0.87553]
[1743643991782,17.15932803,1827.7,1827.5,2.29444]
[1743643992085,1.4504,1827.6,1827.5,0.87558]
[1743643992387,17.15932803,1827.7,1827.6,0.87553]
[1743643992787,18.64052803,1827.7,1827.6,0.87553]
[1743643994385,16.49759011,1827.7,1827.6,0.87553]
[1743643995582,17.37309011,1827.7,1827.5,0.87554]
[1743643996388,18.99759011,1827.7,1827.3,3.2078]
[1743643996584,0.87574,1827.2,1827.0,0.8758]
[1743643996783,2.1967,1827.1,1827.0,0.8758]
[1743643997287,2.1967,1827.1,1826.9,3.2078]
[1743643997583,0.87582,1827.0,1826.9,3.2078]
[1743643997785,1.4845,1827.0,1826.9,4.08367]
[1743643997983,1.4845,1827.0,1826.9,5.51107]
[1743643998187,0.7122,1827.1,1826.9,5.51107]
[1743643998188,0.7122,1827.1,1827.0,0.87582]
[1743643998381,0.7122,1827.1,1827.0,2.30322]
[1743643999593,0.7059,1827.4,1827.3,0.87567]
[1743644000088,1.5176,1827.5,1827.1,9.0318]
[1743644000394,15.70219011,1827.7,1827.6,0.87553]
[1743644000595,17.21979011,1827.7,1827.6,0.87553]
[1743644000889,0.87563,1827.4,1827.1,0.87574]
[1743644001098,2.39328,1827.3,1827.0,4.08359]
[1743644001390,1.5176,1827.3,1827.0,4.6623]
[1743644001593,2.39329,1827.3,1827.0,5.53809]
[1743644001789,0.87574,1827.2,1827.0,4.0836]
[1743644001997,1.3714,1827.1,1827.0,4.0836]
[1743644003189,0.8756,1827.5,1827.3,0.87565]
[1743644003486,6.18297,1827.6,1827.4,0.87562]
[1743644003691,1.3714,1827.6,1827.5,0.87558]
[1743644003899,1.3714,1827.6,1827.5,4.08338]
[1743644006192,15.76279011,1827.7,1827.6,0.87553]
[1743644006387,17.25299011,1827.7,1827.6,2.34963]
[1743644008605,15.01639011,1827.7,1827.6,2.34963]
[1743644009097,15.01639011,1827.7,1827.5,8.01935]
[1743644009297,1.4846,1827.6,1827.5,8.01938]
[1743644009899,1.4846,1827.6,1827.5,4.08338]
[1743644010295,2.36013,1827.6,1827.5,3.2078]
[1743644010499,17.36831509,1827.6,1827.5,3.2078]
[1743644010796,16.49278509,1827.6,1827.5,4.08338]
[1743644011488,17.36831509,1827.6,1827.5,4.08338]
[1743644011688,16.49278509,1827.6,1827.5,4.08338]
[1743644011999,17.36831509,1827.6,1827.5,3.2078]
[1743644012502,18.09711509,1827.6,1827.5,3.2078]
[1743644012696,22.92938509,1827.6,1827.0,57.474]
[1743644012897,22.92938509,1827.6,1826.9,3.2078]
[1743644012898,0.87566,1827.4,1827.1,0.87575]
[1743644013106,0.6938,1827.5,1827.0,0.87578]
[1743644013107,2.29888,1827.3,1827.0,0.87578]
[1743644013304,1.4232,1827.3,1827.1,0.87577]
[1743644013796,1.4232,1827.3,1827.2,0.87572]
[1743644014203,4.631,1827.3,1826.9,4.6554]
[1743644014404,4.631,1827.3,1826.8,3.94420502]
[1743644014405,0.87577,1827.1,1826.8,0.00820502]
[1743644014703,2.0985,1827.0,1826.8,0.88408502]
[1743644014901,2.0985,1827.0,1826.8,0.00820502]
[1743644015098,2.0985,1827.0,1826.9,0.87587]
[1743644015698,0.87587,1826.9,1826.8,3.21600502]
[1743644015897,2.28057,1826.9,1826.8,0.00820502]
[1743644017399,0.8761,1826.5,1826.1,8.5795]
[1743644017605,1.4834,1826.4,1826.2,0.87617]
[1743644017898,1.4834,1826.4,1825.9,65.4918]
[1743644017899,4.6912,1826.4,1825.9,3.2078]
[1743644018100,0.8763,1826.0,1825.7,4.08424]
[1743644018306,1.4834,1825.9,1825.8,0.87639]
[1743644018499,0.00820502,1826.0,1825.9,0.87631]
[1743644018700,0.00820502,1826.0,1825.8,1.5033]
[1743644019002,0.00820502,1826.0,1825.8,2.37968]
[1743644019399,0.00820502,1826.0,1825.9,1.5033]
[1743644020101,0.00820502,1826.0,1825.9,4.7111]
[1743644020299,0.00820502,1826.0,1825.9,5.58745]
[1743644020703,0.00820502,1826.0,1825.9,4.7111]
[1743644020915,0.00820502,1826.0,1825.9,1.5033]
[1743644021206,2.30010502,1826.0,1825.9,1.5033]
[1743644021597,1.42380502,1826.0,1825.7,3.21600502]
[1743644021803,0.87639,1825.9,1825.7,3.21600502]
[1743644022003,0.88453502,1826.0,1825.7,5.60724502]
[1743644022399,0.88453502,1826.0,1825.7,3.21600502]
[1743644022400,0.87639,1825.8,1825.7,3.21600502]
[1743644022905,1.60159,1825.8,1825.7,3.21600502]
[1743644024611,0.87659,1825.4,1825.1,0.999]
[1743644024805,3.2078,1825.5,1825.1,0.999]
[1743644025010,0.87668,1825.2,1825.1,0.999]
[1743644025699,2.25867,1825.3,1825.1,0.999]
[1743644025910,3.2078,1825.7,1825.1,4.2068]
[1743644026109,3.2078,1825.5,1825.1,0.999]
[1743644026302,0.87666,1825.3,1825.1,0.999]
[1743644026809,2.35191,1825.4,1825.1,0.999]
[1743644027014,2.3519,1825.4,1825.2,1.4423]
[1743644027213,1.4753,1825.4,1825.2,1.4423]
[1743644027416,1.4753,1825.4,1825.2,2.31898]
[1743644027816,1.4753,1825.4,1825.2,1.4423]
[1743644028418,1.4753,1825.4,1825.2,2.31898]
[1743644028806,1.4753,1825.4,1825.2,1.4423]
[1743644029010,2.35189,1825.4,1825.2,1.4423]
[1743644029212,1.4753,1825.4,1825.2,2.31896]
[1743644029411,1.4753,1825.4,1825.2,1.4423]
[1743644029621,1.4753,1825.4,1825.2,2.31895]
[1743644029819,4.81447,1825.7,1825.3,3.2078]
[1743644030114,4.81447,1825.7,1825.4,2.26778]
[1743644030115,2.26387,1825.7,1825.4,2.26778]
[1743644030314,2.26387,1825.7,1825.4,1.3912]
[1743644030518,0.87649,1825.6,1825.4,1.3912]
[1743644030814,0.7252,1825.8,1825.4,1.3912]
[1743644031012,2.1126,1825.8,1825.6,0.87645]
[1743644031221,2.98899,1825.8,1825.7,1.3912]
[1743644031615,2.1126,1825.8,1825.7,1.3912]
[1743644031818,1.3874,1825.8,1825.7,1.3912]
[1743644032018,3.21600502,1826.0,1825.8,0.87639]
[1743644032320,3.21600502,1826.0,1825.9,1.3912]
[1743644032321,4.09230502,1826.0,1825.9,1.3912]
[1743644032817,5.49860502,1826.0,1825.9,1.3912]
[1743644033118,2.29080502,1826.0,1825.9,1.3912]
[1743644035420,0.87643,1825.8,1825.5,4.08431]
[1743644035714,2.29845,1825.7,1825.5,9.49141]
[1743644036121,2.29845,1825.7,1825.5,5.55241]